fUSD/lending_fUSD_20240425
["ID","MTS","AMOUNT","RATE_DAILY","PERIOD"]
[323497355,1714053054657,-150.0,0.00012682,2]
[323497356,1714053054666,-150.0,0.00012684,2]
[323497357,1714053054675,-150.0,0.00012684,2]
[323497358,1714053054684,-150.0,0.00012684,2]
[323497359,1714053054693,-150.0,0.00012687,2]
[323497360,1714053054702,-150.0,0.00012688,2]
[323497361,1714053054711,-403.20335664,0.00012691,2]
[323497362,1714053054721,-14140.59144218,0.00012694,2]
[323497363,1714053054730,-150.0,0.00012698,2]
[323497364,1714053054739,-1648.0,0.000127,2]
[323497365,1714053054749,-150.0,0.0001271,2]
[323497366,1714053054758,-150.0,0.0001271,2]
[323497367,1714053054767,-14140.59144214,0.00012713,2]
[323497368,1714053054777,-342.22232771,0.00012715,2]
[323497369,1714053054786,-523.79187868,0.00012715,2]
[323497370,1714053054796,-1244.54920757,0.00012715,2]
[323497371,1714053054806,-872.23711713,0.00012715,2]
[323497372,1714053054815,-363.61192949,0.00012715,2]
[323497373,1714053054825,-282.54,0.00012715,2]
[323497374,1714053054834,-500.0,0.00012715,2]
[323497375,1714053054844,-500.0,0.00012715,2]
[323497376,1714053054854,-500.0,0.00012715,2]
[323497377,1714053054863,-282.42,0.00012715,2]
[323497378,1714053054875,-500.0,0.00012715,2]
[323497379,1714053054884,-500.0,0.00012715,2]
[323497380,1714053054894,-500.0,0.00012715,2]
[323497381,1714053054906,-500.0,0.00012715,2]
[323497382,1714053054915,-500.0,0.00012715,2]
[323497383,1714053054927,-500.0,0.00012715,2]
[323497384,1714053054937,-500.0,0.00012715,2]
[323497385,1714053054946,-500.0,0.00012715,2]
[323497386,1714053054956,-500.0,0.00012715,2]
[323497387,1714053054965,-500.0,0.00012715,2]
[323497388,1714053054974,-561.4,0.00012715,2]
[323497389,1714053054983,-500.0,0.00012715,2]
[323497390,1714053054993,-500.0,0.00012715,2]
[323497391,1714053055003,-520.62,0.00012715,2]
[323497392,1714053055012,-500.0,0.00012715,2]
[323497393,1714053055021,-500.0,0.00012715,2]
[323497394,1714053055030,-612.81,0.00012715,2]
[323497395,1714053055040,-500.0,0.00012715,2]
[323497396,1714053055049,-449.51,0.00012715,2]
[323497397,1714053055058,-500.0,0.00012715,2]
[323497398,1714053055069,-500.0,0.00012715,2]
[323497399,1714053055078,-500.0,0.00012715,2]
[323497400,1714053055087,-2043.12,0.00012715,2]
[323497401,1714053055096,-500.0,0.00012715,2]
[323497402,1714053055105,-500.0,0.00012715,2]
[323497403,1714053055115,-500.0,0.00012715,2]
[323497404,1714053055126,-500.0,0.00012715,2]
[323497405,1714053055135,-500.0,0.00012715,2]
[323497406,1714053055144,-500.0,0.00012715,2]
[323497407,1714053055153,-500.0,0.00012715,2]
[323497408,1714053055162,-6016.87,0.00012715,2]
[323497409,1714053055171,-1247.83,0.00012715,2]
[323497410,1714053055180,-545.57,0.00012715,2]
[323497411,1714053055189,-500.0,0.00012715,2]
[323497412,1714053055198,-4541.66,0.00012715,2]
[323497413,1714053055208,-500.0,0.00012715,2]
[323497414,1714053055217,-500.0,0.00012715,2]
[323497415,1714053055226,-500.0,0.00012715,2]
[323497416,1714053055236,-500.0,0.00012715,2]
[323497417,1714053055245,-151.2,0.00012715,2]
[323497418,1714053055255,-1233.35,0.00012715,2]
[323497419,1714053055265,-500.0,0.00012715,2]
[323497420,1714053055274,-500.0,0.00012715,2]
[323497421,1714053055284,-500.0,0.00012715,2]
[323497422,1714053055293,-500.0,0.00012715,2]
[323497423,1714053055303,-601.92,0.00012715,2]
[323497424,1714053055312,-500.0,0.00012715,2]
[323497425,1714053055322,-500.0,0.00012715,2]
[323497426,1714053055332,-1883.57,0.00012715,2]
[323497427,1714053055342,-500.0,0.00012715,2]
[323497428,1714053055351,-500.0,0.00012715,2]
[323497429,1714053055360,-2624.0,0.00012715,2]
[323497430,1714053055369,-500.0,0.00012715,2]
[323497431,1714053055380,-7450.08,0.00012715,2]
[323497432,1714053055389,-500.0,0.00012715,2]
[323497433,1714053055398,-500.0,0.00012715,2]
[323497434,1714053055407,-500.0,0.00012715,2]
[323497435,1714053055416,-4099.22,0.00012715,2]
[323497436,1714053055426,-609.81,0.00012715,2]
[323497437,1714053055435,-518.33,0.00012715,2]
[323497438,1714053055444,-500.0,0.00012715,2]
[323497439,1714053055453,-500.0,0.00012715,2]
[323497440,1714053055462,-500.0,0.00012715,2]
[323497441,1714053055471,-1892.41,0.00012715,2]
[323497442,1714053055480,-500.0,0.00012715,2]
[323497443,1714053055489,-500.0,0.00012715,2]
[323497444,1714053055499,-500.0,0.00012715,2]
[323497445,1714053055509,-5526.75,0.00012715,2]
[323497446,1714053055520,-500.0,0.00012715,2]
[323497447,1714053055530,-500.0,0.00012715,2]
[323497448,1714053055540,-500.0,0.00012715,2]
[323497449,1714053055549,-500.0,0.00012715,2]
[323497450,1714053055560,-500.0,0.00012715,2]
[323497451,1714053055568,-3018.24,0.00012715,2]
[323497452,1714053055578,-500.0,0.00012715,2]
[323497453,1714053055587,-500.0,0.00012715,2]
[323497454,1714053055597,-500.0,0.00012715,2]
[323497455,1714053055607,-500.0,0.00012715,2]
[323497456,1714053055617,-500.0,0.00012715,2]
[323497457,1714053055628,-500.0,0.00012715,2]
[323497458,1714053055640,-500.0,0.00012715,2]
[323497459,1714053055650,-500.0,0.00012715,2]
[323497460,1714053055660,-500.0,0.00012715,2]
[323497461,1714053055669,-500.0,0.00012715,2]
[323497462,1714053055678,-19280.36,0.00012715,2]
[323497463,1714053055687,-500.0,0.00012715,2]
[323497464,1714053055696,-500.0,0.00012715,2]
[323497465,1714053055706,-500.0,0.00012715,2]
[323497466,1714053055716,-500.0,0.00012715,2]
[323497467,1714053055725,-2054.67,0.00012715,2]
[323497468,1714053055735,-620.81920489,0.00012715,2]
[323497469,1714053055744,-500.0,0.00012715,2]
[323497470,1714053055754,-500.0,0.00012715,2]
[323497471,1714053055763,-500.0,0.00012716,2]
[323497472,1714053055772,-500.0,0.00012716,2]
[323497473,1714053055781,-500.0,0.00012716,2]
[323497474,1714053055790,-500.0,0.00012716,2]
[323497475,1714053055799,-500.0,0.00012716,2]
[323497476,1714053055808,-500.0,0.00012716,2]
[323497477,1714053055818,-500.0,0.00012716,2]
[323497478,1714053055827,-500.0,0.00012716,2]
[323497479,1714053055836,-500.0,0.00012716,2]
[323497480,1714053055845,-500.0,0.00012716,2]
[323497481,1714053055855,-500.0,0.00012716,2]
[323497482,1714053055865,-552.37,0.00012716,2]
[323497483,1714053055875,-500.0,0.00012716,2]
[323497484,1714053055884,-500.0,0.00012716,2]
[323497485,1714053055893,-500.0,0.00012716,2]
[323497486,1714053055902,-500.0,0.00012716,2]
[323497487,1714053055911,-500.0,0.00012716,2]
[323497488,1714053056086,-500.0,0.00012716,2]
[323497489,1714053056095,-500.0,0.00012716,2]
[323497490,1714053056104,-500.0,0.00012716,2]
[323497491,1714053056113,-500.0,0.00012716,2]
[323497492,1714053056123,-500.0,0.00012716,2]
[323497493,1714053056133,-500.0,0.00012716,2]
[323497494,1714053056143,-500.0,0.00012716,2]
[323497495,1714053056152,-500.0,0.00012716,2]
[323497496,1714053056162,-500.0,0.00012716,2]
[323497497,1714053056171,-500.0,0.00012716,2]
[323497498,1714053056180,-500.0,0.00012716,2]
[323497499,1714053056190,-500.0,0.00012716,2]
[323497500,1714053056199,-500.0,0.00012716,2]
[323497501,1714053056208,-500.0,0.00012716,2]
[323497502,1714053056218,-500.0,0.00012716,2]
[323497503,1714053056227,-500.0,0.00012716,2]
[323497504,1714053056236,-514.6,0.00012716,2]
[323497505,1714053056246,-500.0,0.00012716,2]
[323497506,1714053056255,-500.0,0.00012716,2]
[323497507,1714053056264,-500.0,0.00012716,2]
[323497508,1714053056274,-500.0,0.00012716,2]
[323497509,1714053056283,-500.0,0.00012716,2]
[323497510,1714053056292,-500.0,0.00012716,2]
[323497511,1714053056301,-500.0,0.00012716,2]
[323497512,1714053056311,-500.0,0.00012716,2]
[323497513,1714053056320,-500.0,0.00012716,2]
[323497514,1714053056330,-500.0,0.00012716,2]
[323497515,1714053056340,-500.0,0.00012716,2]
[323497516,1714053056349,-500.0,0.00012716,2]
[323497517,1714053056359,-688.79,0.00012716,2]
[323497518,1714053056369,-500.0,0.00012716,2]
[323497519,1714053056381,-500.0,0.00012716,2]
[323497520,1714053056391,-1354.51,0.00012716,2]
[323497521,1714053056400,-500.0,0.00012716,2]
[323497522,1714053056410,-500.0,0.00012716,2]
[323497523,1714053056420,-500.0,0.00012716,2]
[323497524,1714053056430,-500.0,0.00012716,2]
[323497525,1714053056439,-500.0,0.00012716,2]
[323497526,1714053056448,-500.0,0.00012716,2]
[323497527,1714053056459,-500.0,0.00012716,2]
[323497528,1714053056469,-500.0,0.00012716,2]
[323497529,1714053056478,-500.0,0.00012716,2]
[323497530,1714053056487,-997.04,0.00012716,2]
[323497531,1714053056496,-500.0,0.00012716,2]
[323497532,1714053056506,-500.0,0.00012716,2]
[323497533,1714053056517,-500.0,0.00012716,2]
[323497534,1714053056526,-500.0,0.00012716,2]
[323497535,1714053056536,-500.0,0.00012716,2]
[323497536,1714053056546,-500.0,0.00012716,2]
[323497537,1714053056555,-825.97,0.00012716,2]
[323497538,1714053056565,-500.0,0.00012716,2]
[323497539,1714053056574,-500.0,0.00012716,2]
[323497540,1714053056584,-500.0,0.00012716,2]
[323497541,1714053056593,-624.59,0.00012716,2]
[323497542,1714053056602,-500.0,0.00012716,2]
[323497543,1714053056612,-500.0,0.00012716,2]
[323497544,1714053056622,-500.0,0.00012716,2]
[323497545,1714053056634,-500.0,0.00012716,2]
[323497546,1714053056644,-500.0,0.00012716,2]
[323497547,1714053056653,-500.0,0.00012716,2]
[323497548,1714053056662,-500.0,0.00012716,2]
[323497549,1714053056671,-800.63,0.00012716,2]
[323497550,1714053056681,-500.0,0.00012716,2]
[323497551,1714053056691,-500.0,0.00012716,2]
[323497552,1714053056700,-500.0,0.00012716,2]
[323497553,1714053056710,-500.0,0.00012716,2]
[323497554,1714053056719,-500.0,0.00012716,2]
[323497555,1714053056729,-500.0,0.00012716,2]
[323497556,1714053056738,-500.0,0.00012716,2]
[323497557,1714053056747,-500.0,0.00012716,2]
[323497558,1714053056757,-500.0,0.00012716,2]
[323497559,1714053056766,-500.0,0.00012716,2]
[323497560,1714053056775,-500.0,0.00012716,2]
[323497561,1714053056785,-500.0,0.00012716,2]
[323497562,1714053056795,-500.0,0.00012716,2]
[323497563,1714053056804,-500.0,0.00012716,2]
[323497564,1714053056813,-500.0,0.00012716,2]
[323497565,1714053056824,-500.0,0.00012716,2]
[323497566,1714053056835,-500.0,0.00012716,2]
[323497567,1714053056845,-500.0,0.00012716,2]
[323497568,1714053056854,-500.0,0.00012716,2]
[323497569,1714053056864,-772.67,0.00012716,2]
[323497570,1714053056876,-500.0,0.00012716,2]
[323497571,1714053056885,-500.0,0.00012716,2]
[323497572,1714053056894,-500.0,0.00012716,2]
[323497573,1714053056904,-500.0,0.00012716,2]
[323497574,1714053056914,-500.0,0.00012716,2]
[323497575,1714053056925,-500.0,0.00012716,2]
[323497576,1714053056935,-500.0,0.00012716,2]
[323497577,1714053056945,-500.0,0.00012716,2]
[323497578,1714053056954,-500.0,0.00012716,2]
[323497579,1714053056964,-500.0,0.00012716,2]
[323497580,1714053056974,-500.0,0.00012716,2]
[323497581,1714053056983,-519.87095975,0.00012716,2]
[323497582,1714053056993,-500.0,0.00012716,2]
[323497583,1714053057002,-500.0,0.00012716,2]
[323497584,1714053057012,-150.0,0.00012716,2]
[323497585,1714053057022,-500.0,0.00012716,2]
[323497586,1714053057031,-500.0,0.00012716,2]
[323497587,1714053057041,-500.0,0.00012716,2]
[323497588,1714053057052,-500.0,0.00012716,2]
[323497589,1714053057062,-500.0,0.00012716,2]
[323497590,1714053057072,-500.0,0.00012716,2]
[323497591,1714053057081,-500.0,0.00012716,2]
[323497592,1714053057090,-500.0,0.00012716,2]
[323497593,1714053057100,-500.0,0.00012716,2]
[323497594,1714053057110,-547.26,0.00012716,2]
[323497595,1714053057119,-500.0,0.00012716,2]
[323497596,1714053057130,-500.0,0.00012716,2]
[323497597,1714053057140,-500.0,0.00012716,2]
[323497598,1714053057150,-500.0,0.00012716,2]
[323497599,1714053057159,-267.12199139,0.00012716,2]
[323497600,1714053057169,-500.0,0.00012716,2]
[323497601,1714053057179,-291.21,0.00012716,2]
[323497602,1714053057188,-500.0,0.00012716,2]
[323497603,1714053057198,-500.0,0.00012716,2]
[323497604,1714053057207,-500.0,0.00012716,2]
[323497605,1714053057216,-500.0,0.00012716,2]
[323497606,1714053057226,-500.0,0.00012716,2]
[323497607,1714053057235,-500.0,0.00012716,2]
[323497608,1714053057245,-500.0,0.00012716,2]
[323497609,1714053057255,-1035.43,0.00012716,2]
[323497610,1714053057264,-500.0,0.00012716,2]
[323497611,1714053057273,-500.0,0.00012716,2]
[323497612,1714053057283,-500.0,0.00012716,2]
[323497613,1714053057293,-500.0,0.00012716,2]
[323497614,1714053057303,-500.0,0.00012716,2]
[323497615,1714053057312,-500.0,0.00012716,2]
[323497616,1714053057322,-500.0,0.00012716,2]
[323497617,1714053057332,-500.0,0.00012716,2]
[323497618,1714053057342,-873.44,0.00012716,2]
[323497619,1714053057352,-500.0,0.00012716,2]
[323497620,1714053057361,-500.0,0.00012716,2]
[323497621,1714053057370,-500.0,0.00012716,2]
[323497622,1714053057382,-500.0,0.00012716,2]
[323497623,1714053057392,-390.48,0.00012716,2]
[323497624,1714053057401,-500.0,0.00012716,2]
[323497625,1714053057411,-500.0,0.00012716,2]
[323497626,1714053057420,-619.36,0.00012716,2]
[323497627,1714053057429,-500.0,0.00012716,2]
[323497628,1714053057438,-500.0,0.00012716,2]
[323497629,1714053057447,-500.0,0.00012716,2]
[323497630,1714053057457,-500.0,0.00012716,2]
[323497631,1714053057469,-500.0,0.00012716,2]
[323497632,1714053057479,-625.79,0.00012716,2]
[323497633,1714053057489,-500.0,0.00012716,2]
[323497634,1714053057500,-500.0,0.00012716,2]
[323497635,1714053057511,-500.0,0.00012716,2]
[323497636,1714053057520,-500.0,0.00012716,2]
[323497637,1714053057530,-500.0,0.00012716,2]
[323497638,1714053057539,-500.0,0.00012716,2]
[323497639,1714053057549,-500.0,0.00012716,2]
[323497640,1714053057558,-500.0,0.00012716,2]
[323497641,1714053057568,-500.0,0.00012716,2]
[323497642,1714053057577,-500.0,0.00012716,2]
[323497643,1714053057587,-1648.19,0.00012716,2]
[323497644,1714053057596,-500.0,0.00012716,2]
[323497645,1714053057606,-500.0,0.00012716,2]
[323497646,1714053057615,-500.0,0.00012716,2]
[323497647,1714053057625,-500.0,0.00012716,2]
[323497648,1714053057634,-500.0,0.00012716,2]
[323497649,1714053057644,-500.0,0.00012716,2]
[323497650,1714053057653,-500.0,0.00012716,2]
[323497651,1714053057663,-591.1,0.00012716,2]
[323497652,1714053057673,-500.0,0.00012716,2]
[323497653,1714053057683,-1040.77,0.00012716,2]
[323497654,1714053057693,-500.0,0.00012716,2]
[323497655,1714053057702,-500.0,0.00012716,2]
[323497656,1714053057711,-500.0,0.00012716,2]
[323497657,1714053057721,-500.0,0.00012716,2]
[323497658,1714053057731,-1871.56,0.00012716,2]
[323497659,1714053057740,-500.0,0.00012716,2]
[323497660,1714053057750,-500.0,0.00012716,2]
[323497661,1714053057759,-500.0,0.00012716,2]
[323497662,1714053057769,-500.0,0.00012716,2]
[323497663,1714053057778,-500.0,0.00012716,2]
[323497664,1714053057788,-500.0,0.00012716,2]
[323497665,1714053057797,-3496.04,0.00012716,2]
[323497666,1714053057806,-500.0,0.00012716,2]
[323497667,1714053057816,-500.0,0.00012716,2]
[323497668,1714053057828,-500.0,0.00012716,2]
[323497669,1714053057837,-500.0,0.00012716,2]
[323497670,1714053057847,-815.83,0.00012716,2]
[323497671,1714053057857,-500.0,0.00012716,2]
[323497672,1714053057867,-500.0,0.00012716,2]
[323497673,1714053057878,-500.0,0.00012716,2]
[323497674,1714053057887,-3492.56,0.00012716,2]
[323497675,1714053057897,-500.0,0.00012716,2]
[323497676,1714053057909,-500.0,0.00012716,2]
[323497677,1714053057919,-573.69,0.00012716,2]
[323497678,1714053057928,-500.0,0.00012716,2]
[323497679,1714053057939,-500.0,0.00012716,2]
[323497680,1714053057948,-500.0,0.00012716,2]
[323497681,1714053057958,-500.0,0.00012716,2]
[323497682,1714053057967,-500.0,0.00012716,2]
[323497683,1714053057976,-500.0,0.00012716,2]
[323497684,1714053057987,-1000.0,0.00012716,2]
[323497685,1714053057998,-500.0,0.00012716,2]
[323497686,1714053058008,-500.0,0.00012716,2]
[323497687,1714053058018,-2485.06,0.00012716,2]
[323497688,1714053058028,-500.0,0.00012716,2]
[323497689,1714053058038,-500.0,0.00012716,2]
[323497690,1714053058047,-500.0,0.00012716,2]
[323497691,1714053058057,-2026.53,0.00012716,2]
[323497692,1714053058067,-500.0,0.00012716,2]
[323497693,1714053058077,-500.0,0.00012716,2]
[323497694,1714053058086,-500.0,0.00012716,2]
[323497695,1714053058096,-500.0,0.00012716,2]
[323497696,1714053058106,-500.0,0.00012716,2]
[323497697,1714053058116,-1782.8,0.00012716,2]
[323497698,1714053058127,-500.0,0.00012716,2]
[323497699,1714053058137,-1793.94,0.00012716,2]
[323497700,1714053058146,-500.0,0.00012716,2]
[323497701,1714053058155,-500.0,0.00012716,2]
[323497702,1714053058165,-1194.37,0.00012716,2]
[323497703,1714053058175,-1526.39,0.00012716,2]
[323497704,1714053058184,-1949.22,0.00012716,2]
[323497705,1714053058194,-500.0,0.00012716,2]
[323497706,1714053058204,-500.0,0.00012716,2]
[323497707,1714053058214,-500.0,0.00012716,2]
[323497708,1714053058223,-500.0,0.00012716,2]
[323497709,1714053058233,-1544.67,0.00012716,2]
[323497710,1714053058242,-500.0,0.00012716,2]
[323497711,1714053058251,-500.0,0.00012716,2]
[323497712,1714053058260,-500.0,0.00012716,2]
[323497713,1714053058270,-500.0,0.00012716,2]
[323497714,1714053058279,-500.0,0.00012716,2]
[323497715,1714053058288,-500.0,0.00012716,2]
[323497716,1714053058298,-500.0,0.00012716,2]
[323497717,1714053058307,-500.0,0.00012716,2]
[323497718,1714053058317,-500.0,0.00012716,2]
[323497719,1714053058327,-4603.7,0.00012716,2]
[323497720,1714053058336,-500.0,0.00012716,2]
[323497721,1714053058345,-500.0,0.00012716,2]
[323497722,1714053058355,-500.0,0.00012716,2]
[323497723,1714053058364,-500.0,0.00012716,2]
[323497724,1714053058374,-500.0,0.00012716,2]
[323497725,1714053058383,-1511.23,0.00012716,2]
[323497726,1714053058393,-1169.58,0.00012716,2]
[323497727,1714053058403,-500.0,0.00012716,2]
[323497728,1714053058412,-500.0,0.00012716,2]
[323497729,1714053058421,-682.79,0.00012716,2]
[323497730,1714053058430,-500.0,0.00012716,2]
[323497731,1714053058440,-500.0,0.00012716,2]
[323497732,1714053058449,-582.75,0.00012716,2]
[323497733,1714053058458,-500.0,0.00012716,2]
[323497734,1714053058468,-500.0,0.00012716,2]
[323497735,1714053058477,-500.0,0.00012716,2]
[323497736,1714053058487,-500.0,0.00012716,2]
[323497737,1714053058496,-13560.73,0.00012716,2]
[323497738,1714053058505,-500.0,0.00012716,2]
[323497739,1714053058515,-500.0,0.00012716,2]
[323497740,1714053058524,-500.0,0.00012716,2]
[323497741,1714053058533,-1975.98,0.00012716,2]
[323497742,1714053058542,-500.0,0.00012716,2]
[323497743,1714053058694,-500.0,0.00012716,2]
[323497744,1714053058705,-500.0,0.00012716,2]
[323497745,1714053058714,-518.04,0.00012716,2]
[323497746,1714053058724,-500.0,0.00012716,2]
[323497747,1714053058733,-500.0,0.00012716,2]
[323497748,1714053058743,-900.43,0.00012716,2]
[323497749,1714053058752,-500.0,0.00012716,2]
[323497750,1714053058762,-533.21,0.00012716,2]
[323497751,1714053058772,-2055.0,0.00012716,2]
[323497752,1714053058781,-500.0,0.00012716,2]
[323497753,1714053058791,-500.0,0.00012716,2]
[323497754,1714053058801,-25784.49,0.00012716,2]
[323497755,1714053058810,-500.0,0.00012716,2]
[323497756,1714053058820,-500.0,0.00012716,2]
[323497757,1714053058829,-2741.07,0.00012716,2]
[323497758,1714053058838,-500.0,0.00012716,2]
[323497759,1714053058848,-500.0,0.00012716,2]
[323497760,1714053058857,-500.0,0.00012716,2]
[323497761,1714053058867,-500.0,0.00012716,2]
[323497762,1714053058876,-150.0,0.00012719,2]
[323497763,1714053058886,-150.0,0.00012719,2]
[323497764,1714053058898,-150.0,0.0001272,2]
[323497765,1714053058908,-150.0,0.00012721,2]
[323497766,1714053058919,-150.0,0.00012727,2]
[323497767,1714053058928,-650.22,0.00012727,2]
[323497768,1714053058937,-150.0,0.00012729,2]
[323497769,1714053058947,-150.0,0.0001273,2]
[323497770,1714053058956,-14140.59144214,0.00012731,2]
[323497771,1714053058966,-150.0,0.00012732,2]
[323497772,1714053058976,-150.0,0.00012735,2]
[323497773,1714053058985,-150.0,0.00012741,2]
[323497774,1714053058995,-150.0,0.00012743,2]
[323497775,1714053059005,-153.11178116,0.00012744,2]
[323497776,1714053059014,-300.0,0.00012744,2]
[323497777,1714053059024,-300.0,0.00012746,2]
[323497778,1714053059033,-150.0,0.00012747,2]
[323497779,1714053059043,-150.0,0.00012749,2]
[323497780,1714053059052,-150.0,0.00012749,2]
[323497781,1714053059062,-150.0,0.0001275,2]
[323497782,1714053059071,-14140.59144214,0.0001275,2]
[323497783,1714053059082,-150.0,0.00012751,2]
[323497784,1714053059091,-150.0,0.00012753,2]
[323497785,1714053059101,-300.0,0.00012754,2]
[323497786,1714053059110,-150.0,0.00012758,2]
[323497787,1714053059119,-150.0,0.00012759,2]
[323497788,1714053059130,-150.0,0.00012759,2]
[323497789,1714053059138,-300.0,0.0001276,2]
[323497790,1714053059148,-150.0,0.0001276,2]
[323497791,1714053059157,-150.0,0.00012764,2]
[323497792,1714053059166,-150.0,0.00012765,2]
[323497793,1714053059176,-14140.59144214,0.00012769,2]
[323497794,1714053059185,-150.0,0.00012769,2]
[323497795,1714053059195,-150.0,0.0001277,2]
[323497796,1714053059204,-150.0,0.00012773,2]
[323497797,1714053059214,-150.46400573,0.00012774,2]
[323497798,1714053059223,-150.0,0.00012776,2]
[323497799,1714053059232,-150.0,0.00012781,2]
[323497800,1714053059241,-150.0,0.00012787,2]
[323497801,1714053059250,-14140.59144214,0.00012788,2]
[323497802,1714053059260,-150.0,0.0001279,2]
[323497803,1714053059270,-40034.4948,0.00012793,2]
[323497804,1714053059279,-22821.2727,0.00012794,2]
[323497805,1714053059288,-150.0,0.00012794,2]
[323497806,1714053059297,-150.0,0.00012796,2]
[323497807,1714053059308,-150.0,0.00012796,2]
[323497808,1714053059317,-1000.0,0.00012797,2]
[323497809,1714053059327,-150.0,0.00012798,2]
[323497810,1714053059338,-150.0,0.00012798,2]
[323497811,1714053059347,-500.0,0.00012799,2]
[323497812,1714053059357,-521.44,0.00012799,2]
[323497813,1714053059366,-1599.79,0.00012799,2]
[323497814,1714053059377,-1599.79,0.00012799,2]
[323497815,1714053059386,-155.0,0.000128,2]
[323497816,1714053059395,-1000.0,0.000128,2]
[323497817,1714053059405,-150.0,0.000128,2]
[323497818,1714053059414,-300.0,0.00012803,2]
[323497819,1714053059424,-150.0,0.00012805,2]
[323497820,1714053059435,-150.0,0.00012806,2]
[323497821,1714053059444,-150.0,0.00012806,2]
[323497822,1714053059455,-14140.59144214,0.00012806,2]
[323497823,1714053059464,-150.0,0.00012808,2]
[323497824,1714053059474,-150.0,0.00012809,2]
[323497825,1714053059484,-548.62124951,0.00012812,2]
[323497826,1714053059494,-150.0,0.00012813,2]
[323497827,1714053059503,-300.0,0.00012817,2]
[323497828,1714053059513,-300.0,0.0001282,2]
[323497829,1714053059522,-151.0,0.00012821,2]
[323497830,1714053059532,-1859.92,0.00012821,2]
[323497831,1714053059542,-150.0,0.00012824,2]
[323497832,1714053059552,-150.0,0.00012824,2]
[323497833,1714053059561,-150.0,0.00012825,2]
[323497834,1714053059571,-150.0,0.00012825,2]
[323497835,1714053059581,-14140.59144214,0.00012825,2]
[323497836,1714053059590,-150.0,0.00012826,2]
[323497837,1714053059600,-150.0,0.00012828,2]
[323497838,1714053059609,-1000.0,0.0001283,2]
[323497839,1714053059618,-500.0,0.0001283,2]
[323497840,1714053059632,-150.0,0.0001283,2]
[323497841,1714053059641,-150.0,0.0001283,2]
[323497842,1714053059650,-150.0,0.00012831,2]
[323497843,1714053059660,-150.0,0.00012831,2]
[323497844,1714053059670,-238.09460189,0.00012832,2]
[323497845,1714053059679,-809.0,0.00012833,2]
[323497846,1714053059689,-150.0,0.00012836,2]
[323497847,1714053059699,-150.0,0.00012843,2]
[323497848,1714053059709,-14140.59144214,0.00012844,2]
[323497849,1714053059719,-785.211595,0.00012848,2]
[323497850,1714053059729,-150.0,0.00012852,2]
[323497851,1714053059738,-150.0,0.00012854,2]
[323497852,1714053059747,-150.0,0.00012856,2]
[323497853,1714053059756,-150.0,0.00012858,2]
[323497854,1714053059766,-151.0,0.00012862,2]